Workbook

Sheet 7-11 лет
C4: МЕНЮ осень-зима
A5: Рацион: Школьное меню | E5: День: | F5: понедельник
D6: Неделя: | F6: 1
A7: № рец. | B7: Прием пищи, наименование блюда | D7: Масса порции | E7: Пищевые вещества (г) | H7: Энерге- тическая ценность (ккал)
E8: Б | F8: Ж | G8: У
A9: 1 | B9: 2 | D9: 3 | E9: 4 | F9: 5 | G9: 6 | H9: 7
A10: Завтрак
A11: 439.00 | B11: Филе грудки, припущенное с овощами | D11: 90 | E11: 6.98 | F11: 9.76 | G11: 7.60 | H11: 147.20
A12: 212.00 | B12: Макаронные изделия отварные | D12: 150 | E12: 5.49 | F12: 3.98 | G12: 36.29 | H12: 207.91
A13: 283.00 | B13: Чай с сахаром | D13: 200 | E13: 0.08 | F13: 0.02 | G13: 10.0 | H13: 41
B14: Хлеб из пшеничной хлебопекарной муки для детского питания с витамином и железом | D14: 60 | E14: 4 | F14: 0.6 | G14: 33.0 | H14: 152
A15: Итого за Завтрак | D15: =SUM(D11:D14) -> 500 | E15: =SUM(E11:E14) -> 16.15 | F15: =SUM(F11:F14) -> 14.36 | G15: =SUM(G11:G14) -> 86.90 | H15: =SUM(H11:H14) -> 547.62
A16: Обед
A17: 53.00 | B17: Щи из свежей капусты с картофелем | D17: 200 | E17: 1.66 | F17: 4.42 | G17: 6.86 | H17: 70.52
A18: 6.00 | B18: салат из белокочанной капусты | D18: 60 | E18: 1.42 | F18: 4.08 | G18: 9.39 | H18: 74.55
A19: 54-11р | B19: рыба, тушеная в томате с овощами (минтай) | D19: 100 | E19: 14.77 | F19: 7.99 | G19: 4.36 | H19: 149.51
A20: 297.00 | B20: каша перловая рассыпчатая | D20: 150 | E20: 4.60 | F20: 3.90 | G20: 31.70 | H20: 190.8
A21: 283.00 | B21: Чай с сахаром | D21: 200 | E21: 0.08 | F21: 0.02 | G21: 10.0 | H21: 41
B22: Хлеб из пшеничной хлебопекарной муки для детского питания с витамином и железом | D22: 60 | E22: 4 | F22: 0.6 | G22: 33.0 | H22: 152
A23: Итого за Обед | D23: =SUM(D17:D22) -> 770 | E23: =SUM(E17:E22) -> 26.13 | F23: =SUM(F17:F22) -> 21.01 | G23: =SUM(G17:G22) -> 95.32 | H23: =SUM(H17:H22) -> 677.89
A24: Итого за день | D24: =SUM(D23)+D15 -> 1270 | E24: =E15+E23 -> 42.28 | F24: =F15+F23 -> 35.37 | G24: =G15+G23 -> 182.22 | H24: =H15+H23 -> 1225.51
A26: Примерное меню и пищевая ценность приготовляемых блюд (лист 2)
A27: Рацион: Школьное меню | E27: День: | F27: вторник
D28: Неделя: | F28: 1
A29: № рец. | B29: Прием пищи, наименование блюда | D29: Масса порции | E29: Пищевые вещества (г) | H29: Энерге- тическая ценность (ккал)
E30: Б | F30: Ж | G30: У
A31: 1 | B31: 2 | D31: 3 | E31: 4 | F31: 5 | G31: 6 | H31: 7
A32: Завтрак
A34: 96 | B34: гуляш из отварной говядины | D34: 90 | E34: 12.94 | F34: 14.8 | G34: 4.09 | H34: 201.17
A35: 173 | B35: каша гречневая рассыпчатая | D35: 150 | E35: 8.73 | F35: 5.9 | G35: 39.46 | H35: 245.57
A36: 285 | B36: Чай с лимоном и сахаром | D36: 200 | E36: 0.14 | F36: 0.03 | G36: 10.22 | H36: 41.63
B37: Хлеб из пшеничной хлебопекарной муки для детского питания с витамином и железом | D37: 60 | E37: 4 | F37: 0.6 | G37: 33.0 | H37: 152
A38: Итого за Завтрак | D38: =SUM(D33:D37) -> 500 | E38: =SUM(E33:E37) -> 25.41 | F38: =SUM(F33:F37) -> 21.33 | G38: =SUM(G33:G37) -> 86.77 | H38: =SUM(H33:H37) -> 640.37
A39: Обед
A40: 51.00 | B40: салат из свеклы с яблоками | D40: 60 | E40: 0.60 | F40: 3.00 | G40: 5.00 | H40: 51.00
A41: 63.00 | B41: Суп картофельный с бобовыми | D41: 200 | E41: 6.42 | F41: 3.61 | G41: 26.83 | H41: 167.14
A42: 98.00 | B42: жаркое по-домашнему | D42: 200 | E42: 16.56 | F42: 14.49 | G42: 16.41 | H42: 259.7
A43: 283.00 | B43: Чай с сахаром | D43: 200 | E43: 0.08 | F43: 0.02 | G43: 10.0 | H43: 41
B44: Хлеб из пшеничной хлебопекарной муки для детского питания с витамином и железом | D44: 60 | E44: 4 | F44: 0.6 | G44: 33.0 | H44: 152
A45: Итого за Обед | D45: =SUM(D40:D44) -> 720 | E45: =SUM(E40:E44) -> 27.26 | F45: =SUM(F40:F44) -> 21.72 | G45: =SUM(G40:G44) -> 91.25 | H45: =SUM(H40:H44) -> 670.30
A46: Итого за день | D46: =SUM(D45)+D38 -> 1220 | E46: =E38+E45 -> 52.67 | F46: =F38+F45 -> 43.05 | G46: =G38+G45 -> 178.02 | H46: =H38+H45 -> 1310.67
A48: Примерное меню и пищевая ценность приготовляемых блюд (лист 3)
A49: Рацион: Школьное меню | E49: День: | F49: среда
D50: Неделя: | F50: 1
A51: № рец. | B51: Прием пищи, наименование блюда | D51: Масса порции | E51: Пищевые вещества (г) | H51: Энерге- тическая ценность (ккал)
E52: Б | F52: Ж | G52: У
A53: 1 | B53: 2 | D53: 3 | E53: 4 | F53: 5 | G53: 6 | H53: 7
A54: Завтрак
A55: 118.0 | B55: Рагу овощное с мясом | D55: 200 | E55: 16.46 | F55: 18.0 | G55: 16.13 | H55: 290.21
A56: 305.11 | B56: витаминизированный кисель | D56: 200 | E56: 0 | F56: 0 | G56: 23.5 | H56: 95
A57: 588.00 | B57: Плоды свежие (яблоки) | D57: 130 | E57: 0.52 | F57: 0.52 | G57: 12.7 | H57: 61
B58: Хлеб из пшеничной хлебопекарной муки для детского питания с витамином и железом | D58: 60 | E58: 4 | F58: 0.6 | G58: 33.0 | H58: 152
A59: Итого за Завтрак | D59: =SUM(D55:D58) -> 590 | E59: =SUM(E55:E58) -> 20.58 | F59: =SUM(F55:F58) -> 19.13 | G59: =SUM(G55:G58) -> 85.37 | H59: =SUM(H55:H58) -> 598.31
A60: Обед
A61: 54.00 | B61: Рассольник ленинградский | D61: 200 | E61: 2.12 | F61: 4.57 | G61: 10.50 | H61: 95.17
A62: 54-11р | B62: рыба, тушеная в томате с овощами (минтай) | D62: 100 | E62: 14.77 | F62: 7.99 | G62: 4.36 | H62: 149.51
A63: 173.00 | B63: каша гречневая раасыпчатая | D63: 150 | E63: 8.73 | F63: 5.90 | G63: 39.46 | H63: 245.57
A64: 34.00 | B64: Салат "Здоровье" | D64: 60 | E64: 0.88 | F64: 2.70 | G64: 6.68 | H64: 48.00
A65: 295.00 | B65: Компот из свежих плодов (яблоки) | D65: 200 | E65: 0.16 | F65: 0.16 | G65: 18.89 | H65: 78.65
B66: Хлеб из пшеничной хлебопекарной муки для детского питания с витамином и железом | D66: 60 | E66: 4 | F66: 0.6 | G66: 33.0 | H66: 152
A67: Итого за Обед | D67: =SUM(D61:D66) -> 770 | E67: =SUM(E61:E66) -> 30.26 | F67: =SUM(F61:F66) -> 21.92 | G67: =SUM(G61:G66) -> 112.89 | H67: =SUM(H61:H66) -> 768.90
A68: Итого за день | D68: =SUM(D67)+D59 -> 1360 | E68: =E59+E67 -> 50.84 | F68: =F59+F67 -> 41.05 | G68: =G59+G67 -> 198.26 | H68: =H59+H67 -> 1367.21
A70: Примерное меню и пищевая ценность приготовляемых блюд (лист 4)
A71: Рацион: Школьное меню | E71: День: | F71: четверг
D72: Неделя: | F72: 1
A73: № рец. | B73: Прием пищи, наименование блюда | D73: Масса порции | E73: Пищевые вещества (г) | H73: Энерге- тическая ценность (ккал)
E74: Б | F74: Ж | G74: У
A75: 1 | B75: 2 | D75: 3 | E75: 4 | F75: 5 | G75: 6 | H75: 7
A76: Завтрак
A77: 131.00 | B77: плов из курицы | D77: 200 | E77: 27.82 | F77: 22.22 | G77: 25.38 | H77: 470.05
A78: 289 | B78: какао с молоком | D78: 200 | E78: 3.87 | F78: 3.8 | G78: 15.09 | H78: 111.5
A79: 17 | B79: салат из моркови | D79: 60 | E79: 0.67 | F79: 3.05 | G79: 9.55 | H79: 69.0
B80: Хлеб из пшеничной хлебопекарной муки для детского питания с витамином и железом | D80: 60 | E80: 4 | F80: 0.6 | G80: 33.0 | H80: 152
A81: Итого за Завтрак | D81: =SUM(D77:D80) -> 520 | E81: =SUM(E77:E80) -> 35.96 | F81: =SUM(F77:F80) -> 29.67 | G81: =SUM(G77:G80) -> 83.02 | H81: =SUM(H77:H80) -> 802.48
A82: Обед
A83: 56.00 | B83: Борщ с капустой и картофелем | D83: 200 | E83: 1.67 | F83: 3.59 | G83: 9.75 | H83: 76.38
A84: 339.00 | B84: Котлеты из говядины | D84: 100 | E84: 17.60 | F84: 12.30 | G84: 15.00 | H84: 243.00
A85: 138 | B85: картофельное пюре | D85: 150 | E85: 3.26 | F85: 5.04 | G85: 22.03 | H85: 146.96
A86: 42 | B86: салат из белокачанной капусты с яблоками | D86: 60 | E86: 1.10 | F86: 2.70 | G86: 5.70 | H86: 55.00
A87: 294 | B87: компот из смеси сухофруктов | D87: 200 | E87: 0.48 | F87: 0.04 | G87: 28.26 | H87: 116.8
B88: Хлеб из пшеничной хлебопекарной муки для детского питания с витамином и железом | D88: 60 | E88: 4 | F88: 0.6 | G88: 33.0 | H88: 152
A89: Итого за Обед | D89: =SUM(D83:D88) -> 770.00 | E89: =SUM(E83:E88) -> 27.71 | F89: =SUM(F83:F88) -> 24.27 | G89: =SUM(G83:G88) -> 113.74 | H89: =SUM(H83:H88) -> 790.18
A90: Итого за день | D90: =SUM(D89)+D81 -> 1290.00 | E90: =E81+E89 -> 63.67 | F90: =F81+F89 -> 53.94 | G90: =G81+G89 -> 196.76 | H90: =H81+H89 -> 1592.66
A92: Примерное меню и пищевая ценность приготовляемых блюд (лист 5)
A93: Рацион: Школьное меню | E93: День: | F93: пятница
D94: Неделя: | F94: 1
A95: № рец. | B95: Прием пищи, наименование блюда | D95: Масса порции | E95: Пищевые вещества (г) | H95: Энерге- тическая ценность (ккал)
E96: Б | F96: Ж | G96: У
A97: 1 | B97: 2 | D97: 3 | E97: 4 | F97: 5 | G97: 6 | H97: 7
A98: Завтрак
A99: 181.00 | B99: Каша рисовая молочная вязкая | D99: 180 | E99: 5.1 | F99: 7.36 | G99: 27.56 | H99: 242.38
A100: 285 | B100: Чай с лимоном и сахаром | D100: 200 | E100: 0.14 | F100: 0.03 | G100: 10.22 | H100: 41.63
B101: Хлеб из пшеничной хлебопекарной муки для детского питания с витамином и железом | D101: 60 | E101: 4 | F101: 0.6 | G101: 33.0 | H101: 152
A102: 106.00 | B102: Сыр голландский (порциями) | D102: 10 | E102: 2.60 | F102: 2.68 | H102: 35
B103: Йогурт растишка | D103: 110 | E103: 3.8 | F103: 3.0 | G103: 12.8 | H103: 93 | I103: ???????
A104: Итого за Завтрак | D104: =SUM(D99:D103) -> 560 | E104: =SUM(E99:E103) -> 15.27 | F104: =SUM(F99:F103) -> 13.67 | G104: =SUM(G99:G103) -> 83.58 | H104: =SUM(H99:H103) -> 564.21
A105: Обед
A106: 122.00 | B106: Суп с рыбными консервами | D106: 200 | E106: 7.44 | F106: 9.12 | G106: 8.0 | H106: 144.00
A107: 129.00 | B107: Котлеты рубленые из птицы | D107: 90 | E107: 19.13 | F107: 10.99 | G107: 14.18 | H107: 234.29
A108: 212.00 | B108: Макаронные изделия отварные | D108: 150 | E108: 5.49 | F108: 3.98 | G108: 36.29 | H108: 207.91
A109: 25 | B109: салат из свеклы с растительным маслом | D109: 60 | E109: 1.27 | F109: 5.00 | G109: 7.60 | H109: 79.42
A110: 283.00 | B110: Чай с сахаром | D110: 200 | E110: 0.08 | F110: 0.02 | G110: 10.0 | H110: 41
B111: Хлеб из пшеничной хлебопекарной муки для детского питания с витамином и железом | D111: 60 | E111: 4 | F111: 0.6 | G111: 33.0 | H111: 152
A112: Итого за Обед | D112: =SUM(D106:D111) -> 760 | E112: =SUM(E106:E111) -> 37.01 | F112: =SUM(F106:F111) -> 29.71 | G112: =SUM(G106:G111) -> 109.12 | H112: =SUM(H106:H111) -> 858.13
A113: Итого за день | D113: =SUM(D112)+D104 -> 1320 | E113: =E104+E112 -> 52.28 | F113: =F104+F112 -> 43.38 | G113: =G104+G112 -> 192.70 | H113: =H104+H112 -> 1422.34
A115: Примерное меню и пищевая ценность приготовляемых блюд (лист 6)
A116: Рацион: Школьное меню | E116: День: | F116: понедельник
D117: Неделя: | F117: 2
A118: № рец. | B118: Прием пищи, наименование блюда | D118: Масса порции | E118: Пищевые вещества (г) | H118: Энерге- тическая ценность (ккал)
E119: Б | F119: Ж | G119: У
A120: 1 | B120: 2 | D120: 3 | E120: 4 | F120: 5 | G120: 6 | H120: 7
A121: Завтрак
A122: 259.00 | B122: Макароны отварные с сыром | D122: 160 | E122: 9.60 | F122: 8.00 | G122: 28.24 | H122: 224.00
A123: 283.00 | B123: Чай с сахаром | D123: 200 | E123: 0.08 | F123: 0.02 | G123: 10.0 | H123: 41
B124: Хлеб из пшеничной хлебопекарной муки для детского питания с витамином и железом | D124: 60 | E124: 4 | F124: 0.6 | G124: 33.0 | H124: 152
A125: 607 | B125: Вафли | D125: 80 | E125: 2.2 | F125: 2.6 | G125: 61.8 | H125: 280
A126: Итого за Завтрак | D126: =SUM(D122:D125) -> 500 | E126: =SUM(E122:E125) -> 15.52 | F126: =SUM(F122:F125) -> 11.26 | G126: =SUM(G122:G125) -> 133.09 | H126: =SUM(H122:H125) -> 696.51
A127: Обед
A128: 64.00 | B128: суп из овощей | D128: 200 | E128: 1.60 | F128: 3.50 | G128: 8.67 | H128: 72.80
A129: 131.00 | B129: плов из курицы | D129: 200 | E129: 27.82 | F129: 22.22 | G129: 25.38 | H129: 470.05
A130: 17.00 | B130: салат из моркови | D130: 60 | E130: 0.67 | F130: 3.05 | G130: 9.55 | H130: 68.97
A131: 283.00 | B131: Чай с сахаром | D131: 200 | E131: 0.08 | F131: 0.02 | G131: 10.0 | H131: 41
B132: Хлеб из пшеничной хлебопекарной муки для детского питания с витамином и железом | D132: 60 | E132: 4 | F132: 0.6 | G132: 33.0 | H132: 152
A133: Итого за Обед | D133: =SUM(D128:D132) -> 720 | E133: =SUM(E128:E132) -> 33.77 | F133: =SUM(F128:F132) -> 29.39 | G133: =SUM(G128:G132) -> 86.61 | H133: =SUM(H128:H132) -> 804.33
A134: Итого за день | D134: =SUM(D133)+D126 -> 1220 | E134: =E126+E133 -> 49.29 | F134: =F126+F133 -> 40.65 | G134: =G126+G133 -> 219.70 | H134: =H126+H133 -> 1500.84
A136: Примерное меню и пищевая ценность приготовляемых блюд (лист 7)
A137: Рацион: Школьное меню | E137: День: | F137: вторник
D138: Неделя: | F138: 2
A139: № рец. | B139: Прием пищи, наименование блюда | D139: Масса порции | E139: Пищевые вещества (г) | H139: Энерге- тическая ценность (ккал)
E140: Б | F140: Ж | G140: У
A141: 1 | B141: 2 | D141: 3 | E141: 4 | F141: 5 | G141: 6 | H141: 7
A142: Завтрак
A144: 105.00 | B144: Тефтели из говядины (паровые) | D144: 90 | E144: 10.00 | F144: 9.34 | G144: 7.99 | H144: 130.00
A145: 138 | B145: картофельное пюре | D145: 150 | E145: 3.26 | F145: 5.04 | G145: 22.03 | H145: 146.96
A146: 414 | B146: кофейный напиток с молоком | D146: 200 | E146: 2.92 | F146: 3.22 | G146: 14.75 | H146: 100.48
B147: Хлеб из пшеничной хлебопекарной муки для детского питания с витамином и железом | D147: 60 | E147: 4 | F147: 0.6 | G147: 33.0 | H147: 152
A148: Итого за Завтрак | D148: =SUM(D143:D147) -> 500 | E148: =SUM(E143:E147) -> 19.78 | F148: =SUM(F143:F147) -> 18.20 | G148: =SUM(G143:G147) -> 77.77 | H148: =SUM(H143:H147) -> 529.44
A149: Обед
A150: 42 | B150: салат из белокачанной капусты с яблоками | D150: 60 | E150: 1.10 | F150: 2.70 | G150: 5.70 | H150: 55.00
A151: 43.00 | B151: Свекольник | D151: 200 | E151: 2.02 | F151: 4.30 | G151: 13.28 | H151: 100.36
A152: 83.00 | B152: Котлета рыбная | D152: 90 | E152: 11.21 | F152: 14.36 | G152: 14.40 | H152: 232.4
A153: 173 | B153: Каша гречневая рассыпчатая | D153: 150 | E153: 8.73 | F153: 5.90 | G153: 39.46 | H153: 245.57
A154: 305.11 | B154: витаминизированный кисель | D154: 200 | E154: 0 | F154: 0 | G154: 23.5 | H154: 95
B155: Хлеб из пшеничной хлебопекарной муки для детского питания с витамином и железом | D155: 60 | E155: 4 | F155: 0.6 | G155: 33.0 | H155: 152
A156: Итого за Обед | D156: =SUM(D150:D155) -> 760 | E156: =SUM(E150:E155) -> 26.66 | F156: =SUM(F150:F155) -> 27.86 | G156: =SUM(G150:G155) -> 129.34 | H156: =SUM(H150:H155) -> 880.33
A157: Итого за день | D157: =SUM(D156)+D148 -> 1260 | E157: =E148+E156 -> 46.44 | F157: =F148+F156 -> 46.06 | G157: =G148+G156 -> 207.11 | H157: =H148+H156 -> 1409.77
A158: Рацион: Школьное меню | E158: День: | F158: среда
D159: Неделя: | F159: 2
A160: № рец. | B160: Прием пищи, наименование блюда | D160: Масса порции | E160: Пищевые вещества (г) | H160: Энерге- тическая ценность (ккал)
E161: Б | F161: Ж | G161: У
A162: 1 | B162: 2 | D162: 3 | E162: 4 | F162: 5 | G162: 6 | H162: 7
A163: Завтрак
A164: 61.00 | B164: суп картофельный с крупой (пшено) | D164: 200 | E164: 2.12 | F164: 2.30 | G164: 11.31 | H164: 73.62
A165: 285 | B165: Чай с лимоном и сахаром | D165: 200 | E165: 0.14 | F165: 0.03 | G165: 10.22 | H165: 41.63
B166: Хлеб из пшеничной хлебопекарной муки для детского питания с витамином и железом | D166: 60 | E166: 4 | F166: 0.6 | G166: 33.0 | H166: 152
A167: 118 | B167: Плоды свежие (яблоки) | D167: 130 | E167: 0.5 | F167: 0.5 | G167: 12.7 | H167: 61
A168: Итого за Завтрак | D168: =SUM(D164:D167) -> 590 | E168: =SUM(E164:E167) -> 6.38 | F168: =SUM(F164:F167) -> 3.45 | G168: =SUM(G164:G167) -> 67.27 | H168: =SUM(H164:H167) -> 328.35
A169: Обед
A170: 53.00 | B170: Щи из свежей капусты с картофелем | D170: 200 | E170: 1.66 | F170: 4.42 | G170: 6.86 | H170: 70.52
A171: 96.00 | B171: Гуляш из отварной говядины | D171: 90 | E171: 12.94 | F171: 14.80 | G171: 4.09 | H171: 201.17
A172: 212.00 | B172: Макаронные изделия отварные | D172: 150 | E172: 5.49 | F172: 3.98 | G172: 36.29 | H172: 207.91
A173: 42.00 | B173: винегрет овощной | D173: 60 | E173: 0.88 | F173: 1.60 | G173: 4.23 | H173: 35.18
A174: 295.00 | B174: Компот из свежих плодов (яблоки) | D174: 200 | E174: 0.16 | F174: 0.16 | G174: 18.89 | H174: 78.65
B175: Хлеб из пшеничной хлебопекарной муки для детского питания с витамином и железом | D175: 60 | E175: 4 | F175: 0.6 | G175: 33.0 | H175: 152
A176: Итого за Обед | D176: =SUM(D170:D175) -> 760 | E176: =SUM(E170:E175) -> 24.73 | F176: =SUM(F170:F175) -> 25.56 | G176: =SUM(G170:G175) -> 103.36 | H176: =SUM(H170:H175) -> 745.43
A177: Итого за день | D177: =SUM(D176)+D168 -> 1350 | E177: =E168+E176 -> 31.11 | F177: =F168+F176 -> 29.01 | G177: =G168+G176 -> 170.63 | H177: =H168+H176 -> 1073.78
A179: Примерное меню и пищевая ценность приготовляемых блюд (лист 9)
A180: Рацион: Школьное меню | E180: День: | F180: четверг
D181: Неделя: | F181: 2
A182: № рец. | B182: Прием пищи, наименование блюда | D182: Масса порции | E182: Пищевые вещества (г) | H182: Энерге- тическая ценность (ккал)
E183: Б | F183: Ж | G183: У
A184: 1 | B184: 2 | D184: 3 | E184: 4 | F184: 5 | G184: 6 | H184: 7
A185: Завтрак
A186: 196.00 | B186: Каша молочная "Дружба" | D186: 185 | E186: 5.77 | F186: 7.29 | G186: 32.25 | H186: 217.84
A187: 289 | B187: какао с молоком | D187: 200 | E187: 3.87 | F187: 3.8 | G187: 15.09 | H187: 111.5
B188: Хлеб из пшеничной хлебопекарной муки для детского питания с витамином и железом | D188: 60 | E188: 4 | F188: 0.6 | G188: 33.0 | H188: 152
A189: 155.02 | B189: сок фруктовый | D189: 200 | E189: 3.3 | F189: 3.3 | G189: 5.5 | H189: 65
A190: Итого за Завтрак | D190: =SUM(D186:D189) -> 645 | E190: =SUM(E186:E189) -> 16.54 | F190: =SUM(F186:F189) -> 14.99 | G190: =SUM(G186:G189) -> 85.84 | H190: =SUM(H186:H189) -> 546.30
A191: Обед
A192: 63.00 | B192: Суп картофельный с бобовыми | D192: 200 | E192: 6.42 | F192: 3.61 | G192: 26.83 | H192: 167.14
A193: 439.00 | B193: Филе грудки, припущенное с овощами | D193: 90 | E193: 6.98 | F193: 9.76 | G193: 7.60 | H193: 147.20
A194: 131.00 | B194: картофель отварной с маслом | D194: 170 | E194: 4.13 | F194: 4.32 | G194: 21.21 | H194: 137.06
A195: 51.00 | B195: салат из свеклы с яблоками | D195: 60 | E195: 0.60 | F195: 3.00 | G195: 5.00 | H195: 51.00
A196: 294.00 | B196: Компот из смеси сухофруктов | D196: 200 | E196: 0.48 | F196: 0.04 | G196: 28.26 | H196: 116.84
B197: Хлеб из пшеничной хлебопекарной муки для детского питания с витамином и железом | D197: 60 | E197: 4 | F197: 0.6 | G197: 33.0 | H197: 152
A198: Итого за Обед | D198: =SUM(D192:D197) -> 780 | E198: =SUM(E193:E197) -> 15.79 | F198: =SUM(F193:F197) -> 17.72 | G198: =SUM(G193:G197) -> 95.07 | H198: =SUM(H193:H197) -> 604.10
A199: Итого за день | D199: =SUM(D198)+D190 -> 1425 | E199: =E191+E198 -> 15.79 | F199: =F191+F198 -> 17.72 | G199: =G191+G198 -> 95.07 | H199: =H191+H198 -> 604.10
A201: Примерное меню и пищевая ценность приготовляемых блюд (лист 10)
A202: Рацион: Школьное меню | E202: День: | F202: пятница
D203: Неделя: | F203: 2
A204: № рец. | B204: Прием пищи, наименование блюда | D204: Масса порции | E204: Пищевые вещества (г) | H204: Энерге- тическая ценность (ккал)
E205: Б | F205: Ж | G205: У
A206: 1 | B206: 2 | D206: 3 | E206: 4 | F206: 5 | G206: 6 | H206: 7
A207: Завтрак
A208: 98.00 | B208: жаркое по-домашнему | D208: 200 | E208: 16.56 | F208: 14.49 | G208: 16.41 | H208: 259.65
A209: 295 | B209: Компот из свежих плодов (яблоки) | D209: 200 | E209: 0.16 | F209: 0.16 | G209: 18.89 | H209: 78.7
B210: Хлеб из пшеничной хлебопекарной муки для детского питания с витамином и железом | D210: 60 | E210: 4 | F210: 0.6 | G210: 33.0 | H210: 152
A212: Итого за Завтрак | D212: =SUM(D208:D211) -> 460 | E212: =SUM(E208:E211) -> 20.32 | F212: =SUM(F208:F211) -> 15.25 | G212: =SUM(G208:G211) -> 68.30 | H212: =SUM(H208:H211) -> 490.30
A213: Обед
A214: 59.00 | B214: суп картофельный с макаронными изделиями | D214: 200 | E214: 2.53 | F214: 1.77 | G214: 14.14 | H214: 82.17
... 7 more rows

Sheet ММС 5-9 кл
C6: МЕНЮ осень-зима
A7: Рацион: Школьное меню | E7: День: | F7: понедельник
D8: Неделя: | F8: 1
A9: № рец. | B9: Прием пищи, наименование блюда | D9: Масса порции | E9: Пищевые вещества (г) | H9: Энерге- тическая ценность (ккал)
E10: Б | F10: Ж | G10: У
A11: 1 | B11: 2 | D11: 3 | E11: 4 | F11: 5 | G11: 6 | H11: 7
A12: Завтрак
A13: 439.00 | B13: Филе грудки, припущенное с овощами | D13: 100 | E13: 7.76 | F13: 10.84 | G13: 8.44 | H13: 163.60
A14: 212.00 | B14: Макаронные изделия отварные | D14: 180 | E14: 6.59 | F14: 4.77 | G14: 43.55 | H14: 249.49
A15: 283.00 | B15: Чай с сахаром | D15: 200 | E15: 0.08 | F15: 0.02 | G15: 10.0 | H15: 41
B16: Хлеб из пшеничной хлебопекарной муки для детского питания с витамином и железом | D16: 60 | E16: 4 | F16: 0.6 | G16: 33.0 | H16: 152
A17: Итого за Завтрак | D17: =SUM(D13:D16) -> 540 | E17: =SUM(E13:E16) -> 18.03 | F17: =SUM(F13:F16) -> 16.23 | G17: =SUM(G13:G16) -> 95.00 | H17: =SUM(H13:H16) -> 605.60
A19: Примерное меню и пищевая ценность приготовляемых блюд (лист 2)
A20: Рацион: Школьное меню | E20: День: | F20: вторник
D21: Неделя: | F21: 1
A22: № рец. | B22: Прием пищи, наименование блюда | D22: Масса порции | E22: Пищевые вещества (г) | H22: Энерге- тическая ценность (ккал)
E23: Б | F23: Ж | G23: У
A24: 1 | B24: 2 | D24: 3 | E24: 4 | F24: 5 | G24: 6 | H24: 7
A25: Завтрак
A27: 96 | B27: гуляш из отварной говядины | D27: 120 | E27: 22.07 | F27: 20.79 | G27: 4.04 | H27: 268.22
A28: 173 | B28: каша гречневая рассыпчатая | D28: 180 | E28: 10.5 | F28: 6.36 | G28: 47.76 | H28: 294.68
A29: 285 | B29: Чай с лимоном и сахаром | D29: 200 | E29: 0.14 | F29: 0.03 | G29: 10.22 | H29: 41.63
B30: Хлеб из пшеничной хлебопекарной муки для детского питания с витамином и железом | D30: 60 | E30: 4 | F30: 0.6 | G30: 33.0 | H30: 152
A31: Итого за Завтрак | D31: =SUM(D26:D30) -> 560 | E31: =SUM(E26:E30) -> 36.31 | F31: =SUM(F26:F30) -> 27.78 | G31: =SUM(G26:G30) -> 95.02 | H31: =SUM(H26:H30) -> 756.53
A33: Примерное меню и пищевая ценность приготовляемых блюд (лист 3)
A34: Рацион: Школьное меню | E34: День: | F34: среда
D35: Неделя: | F35: 1
A36: № рец. | B36: Прием пищи, наименование блюда | D36: Масса порции | E36: Пищевые вещества (г) | H36: Энерге- тическая ценность (ккал)
E37: Б | F37: Ж | G37: У
A38: 1 | B38: 2 | D38: 3 | E38: 4 | F38: 5 | G38: 6 | H38: 7
A39: Завтрак
A40: 118.0 | B40: Рагу овощное с мясом | D40: 250 | E40: 20.57 | F40: 22.5 | G40: 20.16 | H40: 362.76
A41: 305.11 | B41: витаминизированный кисель | D41: 200 | E41: 0 | F41: 0 | G41: 23.5 | H41: 95
A42: 588.00 | B42: Плоды свежие (яблоки) | D42: 130 | E42: 0.52 | F42: 0.52 | G42: 12.7 | H42: 61
B43: Хлеб из пшеничной хлебопекарной муки для детского питания с витамином и железом | D43: 60 | E43: 4 | F43: 0.6 | G43: 33.0 | H43: 152
A44: Итого за Завтрак | D44: =SUM(D40:D43) -> 640 | E44: =SUM(E40:E43) -> 24.69 | F44: =SUM(F40:F43) -> 23.62 | G44: =SUM(G40:G43) -> 89.40 | H44: =SUM(H40:H43) -> 670.86
A46: Примерное меню и пищевая ценность приготовляемых блюд (лист 4)
A47: Рацион: Школьное меню | E47: День: | F47: четверг
D48: Неделя: | F48: 1
A49: № рец. | B49: Прием пищи, наименование блюда | D49: Масса порции | E49: Пищевые вещества (г) | H49: Энерге- тическая ценность (ккал)
E50: Б | F50: Ж | G50: У
A51: 1 | B51: 2 | D51: 3 | E51: 4 | F51: 5 | G51: 6 | H51: 7
A52: Завтрак
A53: 131.00 | B53: плов из курицы | D53: 220 | E53: 30.60 | F53: 24.44 | G53: 27.92 | H53: 517.05
A54: 289 | B54: какао с молоком | D54: 200 | E54: 3.87 | F54: 3.8 | G54: 15.09 | H54: 111.5
A55: 17 | B55: салат из моркови | D55: 100 | E55: 1.11 | F55: 5.08 | G55: 15.91 | H55: 115.0
B56: Хлеб из пшеничной хлебопекарной муки для детского питания с витамином и железом | D56: 60 | E56: 4 | F56: 0.6 | G56: 33.0 | H56: 152
A57: Итого за Завтрак | D57: =SUM(D53:D56) -> 580 | E57: =SUM(E53:E56) -> 39.18 | F57: =SUM(F53:F56) -> 33.92 | G57: =SUM(G53:G56) -> 91.92 | H57: =SUM(H53:H56) -> 895.46
A59: Примерное меню и пищевая ценность приготовляемых блюд (лист 5)
A60: Рацион: Школьное меню | E60: День: | F60: пятница
D61: Неделя: | F61: 1
A62: № рец. | B62: Прием пищи, наименование блюда | D62: Масса порции | E62: Пищевые вещества (г) | H62: Энерге- тическая ценность (ккал)
E63: Б | F63: Ж | G63: У
A64: 1 | B64: 2 | D64: 3 | E64: 4 | F64: 5 | G64: 6 | H64: 7
A65: Завтрак
A66: 181.00 | B66: Каша рисовая молочная вязкая | D66: 200 | E66: 5.7 | F66: 8.17 | G66: 30.62 | H66: 269.31
A67: 285 | B67: Чай с лимоном и сахаром | D67: 200 | E67: 0.14 | F67: 0.03 | G67: 10.22 | H67: 41.63
B68: Хлеб из пшеничной хлебопекарной муки для детского питания с витамином и железом | D68: 60 | E68: 4 | F68: 0.6 | G68: 33.0 | H68: 152
A69: 106.00 | B69: Сыр голландский (порциями) | D69: 10 | E69: 2.60 | F69: 2.68 | H69: 35
B70: Йогурт растишка | D70: 110 | E70: 3.8 | F70: 3.0 | G70: 12.8 | H70: 93
A71: Итого за Завтрак | D71: =SUM(D66:D70) -> 580 | E71: =SUM(E66:E70) -> 15.84 | F71: =SUM(F66:F70) -> 14.48 | G71: =SUM(G66:G70) -> 86.64 | H71: =SUM(H66:H70) -> 591.14
A73: Примерное меню и пищевая ценность приготовляемых блюд (лист 6)
A74: Рацион: Школьное меню | E74: День: | F74: понедельник
D75: Неделя: | F75: 2
A76: № рец. | B76: Прием пищи, наименование блюда | D76: Масса порции | E76: Пищевые вещества (г) | H76: Энерге- тическая ценность (ккал)
E77: Б | F77: Ж | G77: У
A78: 1 | B78: 2 | D78: 3 | E78: 4 | F78: 5 | G78: 6 | H78: 7
A79: Завтрак
A80: 259.00 | B80: Макароны отварные с сыром | D80: 180 | E80: 10.80 | F80: 9.00 | G80: 31.77 | H80: 252.00
A81: 283.00 | B81: Чай с сахаром | D81: 200 | E81: 0.08 | F81: 0.02 | G81: 10.0 | H81: 41
B82: Хлеб из пшеничной хлебопекарной муки для детского питания с витамином и железом | D82: 60 | E82: 4 | F82: 0.6 | G82: 33.0 | H82: 152
A83: 607 | B83: Вафли | D83: 80 | E83: 2.2 | F83: 2.6 | G83: 61.8 | H83: 280
A84: Итого за Завтрак | D84: =SUM(D80:D83) -> 520 | E84: =SUM(E80:E83) -> 16.72 | F84: =SUM(F80:F83) -> 12.26 | G84: =SUM(G80:G83) -> 136.62 | H84: =SUM(H80:H83) -> 724.51
A86: Примерное меню и пищевая ценность приготовляемых блюд (лист 7)
A87: Рацион: Школьное меню | E87: День: | F87: вторник
D88: Неделя: | F88: 2
A89: № рец. | B89: Прием пищи, наименование блюда | D89: Масса порции | E89: Пищевые вещества (г) | H89: Энерге- тическая ценность (ккал)
E90: Б | F90: Ж | G90: У
A91: 1 | B91: 2 | D91: 3 | E91: 4 | F91: 5 | G91: 6 | H91: 7
A92: Завтрак
A94: 105.00 | B94: Тефтели из говядины (паровые) | D94: 120 | E94: 13.33 | F94: 12.45 | G94: 10.65 | H94: 173.00
A95: 138 | B95: картофельное пюре | D95: 200 | E95: 4.35 | F95: 6.72 | G95: 29.37 | H95: 195.94
A96: 414 | B96: кофейный напиток с молоком | D96: 200 | E96: 2.92 | F96: 3.22 | G96: 14.75 | H96: 100.48
B97: Хлеб из пшеничной хлебопекарной муки для детского питания с витамином и железом | D97: 60 | E97: 4 | F97: 0.6 | G97: 33.0 | H97: 152
A98: Итого за Завтрак | E98: =SUM(E93:E97) -> 24.20 | F98: =SUM(F93:F97) -> 22.99 | G98: =SUM(G93:G97) -> 87.77 | H98: =SUM(H93:H97) -> 621.42
A99: Рацион: Школьное меню | E99: День: | F99: среда
D100: Неделя: | F100: 2
A101: № рец. | B101: Прием пищи, наименование блюда | D101: Масса порции | E101: Пищевые вещества (г) | H101: Энерге- тическая ценность (ккал)
E102: Б | F102: Ж | G102: У
A103: 1 | B103: 2 | D103: 3 | E103: 4 | F103: 5 | G103: 6 | H103: 7
A104: Завтрак
A105: 61.00 | B105: суп картофельный с крупой (пшено) | D105: 250 | E105: 2.65 | F105: 2.90 | G105: 14.14 | H105: 92.03
A106: 285 | B106: Чай с лимоном и сахаром | D106: 200 | E106: 0.14 | F106: 0.03 | G106: 10.22 | H106: 41.63
B107: Хлеб из пшеничной хлебопекарной муки для детского питания с витамином и железом | D107: 60 | E107: 4 | F107: 0.6 | G107: 33.0 | H107: 152
A108: 118 | B108: Плоды свежие (яблоки) | D108: 130 | E108: 0.5 | F108: 0.5 | G108: 12.7 | H108: 61
A109: Итого за Завтрак | D109: =SUM(D105:D108) -> 640 | E109: =SUM(E105:E108) -> 6.91 | F109: =SUM(F105:F108) -> 4.05 | G109: =SUM(G105:G108) -> 70.10 | H109: =SUM(H105:H108) -> 346.76
A111: Примерное меню и пищевая ценность приготовляемых блюд (лист 9)
A112: Рацион: Школьное меню | E112: День: | F112: четверг
D113: Неделя: | F113: 2
A114: № рец. | B114: Прием пищи, наименование блюда | D114: Масса порции | E114: Пищевые вещества (г) | H114: Энерге- тическая ценность (ккал)
E115: Б | F115: Ж | G115: У
A116: 1 | B116: 2 | D116: 3 | E116: 4 | F116: 5 | G116: 6 | H116: 7
A117: Завтрак
A118: 196.00 | B118: Каша молочная "Дружба" | D118: 200 | E118: 6.23 | F118: 7.88 | G118: 35.86 | H118: 235.50
A119: 289 | B119: какао с молоком | D119: 200 | E119: 3.87 | F119: 3.8 | G119: 15.09 | H119: 111.5
B120: Хлеб из пшеничной хлебопекарной муки для детского питания с витамином и железом | D120: 60 | E120: 4 | F120: 0.6 | G120: 33.0 | H120: 152
A121: 155.02 | B121: сок фруктовый | D121: 200 | E121: 3.3 | F121: 3.3 | G121: 5.5 | H121: 65
A122: Итого за Завтрак | D122: =SUM(D118:D121) -> 660 | E122: =SUM(E118:E121) -> 17.00 | F122: =SUM(F118:F121) -> 15.58 | G122: =SUM(G118:G121) -> 89.45 | H122: =SUM(H118:H121) -> 563.96
A124: Примерное меню и пищевая ценность приготовляемых блюд (лист 10)
A125: Рацион: Школьное меню | E125: День: | F125: пятница
D126: Неделя: | F126: 2
A127: № рец. | B127: Прием пищи, наименование блюда | D127: Масса порции | E127: Пищевые вещества (г) | H127: Энерге- тическая ценность (ккал)
E128: Б | F128: Ж | G128: У
A129: 1 | B129: 2 | D129: 3 | E129: 4 | F129: 5 | G129: 6 | H129: 7
A130: Завтрак
A131: 98.00 | B131: жаркое по-домашнему | D131: 250 | E131: 27.04 | F131: 23.10 | G131: 24.10 | H131: 412.32
A132: 295 | B132: Компот из свежих плодов (яблоки) | D132: 200 | E132: 0.16 | F132: 0.16 | G132: 18.89 | H132: 78.7
B133: Хлеб из пшеничной хлебопекарной муки для детского питания с витамином и железом | D133: 60 | E133: 4 | F133: 0.6 | G133: 33.0 | H133: 152
A135: Итого за Завтрак | D135: 510 | E135: =SUM(E131:E134) -> 30.80 | F135: =SUM(F131:F134) -> 23.86 | G135: =SUM(G131:G134) -> 75.99 | H135: =SUM(H131:H134) -> 642.97

Sheet род пл
C6: МЕНЮ осень-зима
A7: Рацион: Школьное меню | E7: День: | F7: понедельник
D8: Неделя: | F8: 1
A9: № рец. | B9: Прием пищи, наименование блюда | D9: Масса порции | E9: Пищевые вещества (г) | H9: Энерге- тическая ценность (ккал)
E10: Б | F10: Ж | G10: У
A11: 1 | B11: 2 | D11: 3 | E11: 4 | F11: 5 | G11: 6 | H11: 7
A12: Завтрак
A13: 439.00 | B13: Филе грудки, припущенное с овощами | D13: 100 | E13: 7.76 | F13: 10.84 | G13: 8.44 | H13: 163.60
A14: 212.00 | B14: Макаронные изделия отварные | D14: 180 | E14: 6.59 | F14: 4.77 | G14: 43.55 | H14: 249.49
A15: 283.00 | B15: Чай с сахаром | D15: 200 | E15: 0.08 | F15: 0.02 | G15: 10.0 | H15: 41
B16: Хлеб из пшеничной хлебопекарной муки для детского питания с витамином и железом | D16: 60 | E16: 4 | F16: 0.6 | G16: 33.0 | H16: 152
A17: Итого за Завтрак | D17: =SUM(D13:D16) -> 540 | E17: =SUM(E13:E16) -> 18.03 | F17: =SUM(F13:F16) -> 16.23 | G17: =SUM(G13:G16) -> 95.00 | H17: =SUM(H13:H16) -> 605.60
A19: Примерное меню и пищевая ценность приготовляемых блюд (лист 2)
A20: Рацион: Школьное меню | E20: День: | F20: вторник
D21: Неделя: | F21: 1
A22: № рец. | B22: Прием пищи, наименование блюда | D22: Масса порции | E22: Пищевые вещества (г) | H22: Энерге- тическая ценность (ккал)
E23: Б | F23: Ж | G23: У
A24: 1 | B24: 2 | D24: 3 | E24: 4 | F24: 5 | G24: 6 | H24: 7
A25: Завтрак
A27: 96 | B27: гуляш из отварной говядины | D27: 120 | E27: 22.07 | F27: 20.79 | G27: 4.04 | H27: 268.22
A28: 173 | B28: каша гречневая рассыпчатая | D28: 180 | E28: 10.5 | F28: 6.36 | G28: 47.76 | H28: 294.68
A29: 285 | B29: Чай с лимоном и сахаром | D29: 200 | E29: 0.14 | F29: 0.03 | G29: 10.22 | H29: 41.63
B30: Хлеб из пшеничной хлебопекарной муки для детского питания с витамином и железом | D30: 60 | E30: 4 | F30: 0.6 | G30: 33.0 | H30: 152
A31: Итого за Завтрак | D31: =SUM(D26:D30) -> 560 | E31: =SUM(E26:E30) -> 36.31 | F31: =SUM(F26:F30) -> 27.78 | G31: =SUM(G26:G30) -> 95.02 | H31: =SUM(H26:H30) -> 756.53
A33: Примерное меню и пищевая ценность приготовляемых блюд (лист 3)
A34: Рацион: Школьное меню | E34: День: | F34: среда
D35: Неделя: | F35: 1
A36: № рец. | B36: Прием пищи, наименование блюда | D36: Масса порции | E36: Пищевые вещества (г) | H36: Энерге- тическая ценность (ккал)
E37: Б | F37: Ж | G37: У
A38: 1 | B38: 2 | D38: 3 | E38: 4 | F38: 5 | G38: 6 | H38: 7
A39: Завтрак
A40: 118.0 | B40: Рагу овощное с мясом | D40: 250 | E40: 20.57 | F40: 22.5 | G40: 20.16 | H40: 362.76
A41: 305.11 | B41: витаминизированный кисель | D41: 200 | E41: 0 | F41: 0 | G41: 23.5 | H41: 95
B42: Хлеб из пшеничной хлебопекарной муки для детского питания с витамином и железом | D42: 60 | E42: 4 | F42: 0.6 | G42: 33.0 | H42: 152
A43: Итого за Завтрак | D43: =SUM(D40:D42) -> 510 | E43: =SUM(E40:E42) -> 24.17 | F43: =SUM(F40:F42) -> 23.10 | G43: =SUM(G40:G42) -> 76.66 | H43: =SUM(H40:H42) -> 609.76
A45: Примерное меню и пищевая ценность приготовляемых блюд (лист 4)
A46: Рацион: Школьное меню | E46: День: | F46: четверг
D47: Неделя: | F47: 1
A48: № рец. | B48: Прием пищи, наименование блюда | D48: Масса порции | E48: Пищевые вещества (г) | H48: Энерге- тическая ценность (ккал)
E49: Б | F49: Ж | G49: У
A50: 1 | B50: 2 | D50: 3 | E50: 4 | F50: 5 | G50: 6 | H50: 7
A51: Завтрак
A52: 131.00 | B52: плов из курицы | D52: 220 | E52: 30.60 | F52: 24.44 | G52: 27.92 | H52: 517.05
A53: 289 | B53: какао с молоком | D53: 200 | E53: 3.87 | F53: 3.8 | G53: 15.09 | H53: 111.5
A54: 17 | B54: салат из моркови | D54: 100 | E54: 1.11 | F54: 5.08 | G54: 15.91 | H54: 115.0
B55: Хлеб из пшеничной хлебопекарной муки для детского питания с витамином и железом | D55: 60 | E55: 4 | F55: 0.6 | G55: 33.0 | H55: 152
A56: Итого за Завтрак | D56: =SUM(D52:D55) -> 580 | E56: =SUM(E52:E55) -> 39.18 | F56: =SUM(F52:F55) -> 33.92 | G56: =SUM(G52:G55) -> 91.92 | H56: =SUM(H52:H55) -> 895.46
A58: Примерное меню и пищевая ценность приготовляемых блюд (лист 5)
A59: Рацион: Школьное меню | E59: День: | F59: пятница
D60: Неделя: | F60: 1
A61: № рец. | B61: Прием пищи, наименование блюда | D61: Масса порции | E61: Пищевые вещества (г) | H61: Энерге- тическая ценность (ккал)
E62: Б | F62: Ж | G62: У
A63: 1 | B63: 2 | D63: 3 | E63: 4 | F63: 5 | G63: 6 | H63: 7
A64: Завтрак
A65: 181.00 | B65: Каша рисовая молочная вязкая | D65: 200 | E65: 5.7 | F65: 8.17 | G65: 30.62 | H65: 269.31
A66: 285 | B66: Чай с лимоном и сахаром | D66: 200 | E66: 0.14 | F66: 0.03 | G66: 10.22 | H66: 41.63
B67: Хлеб из пшеничной хлебопекарной муки для детского питания с витамином и железом | D67: 60 | E67: 4 | F67: 0.6 | G67: 33.0 | H67: 152
A68: Итого за Завтрак | D68: =SUM(D65:D67) -> 460 | E68: =SUM(E65:E67) -> 9.44 | F68: =SUM(F65:F67) -> 8.80 | G68: =SUM(G65:G67) -> 73.84 | H68: =SUM(H65:H67) -> 462.94
A70: Примерное меню и пищевая ценность приготовляемых блюд (лист 6)
A71: Рацион: Школьное меню | E71: День: | F71: понедельник
D72: Неделя: | F72: 2
A73: № рец. | B73: Прием пищи, наименование блюда | D73: Масса порции | E73: Пищевые вещества (г) | H73: Энерге- тическая ценность (ккал)
E74: Б | F74: Ж | G74: У
A75: 1 | B75: 2 | D75: 3 | E75: 4 | F75: 5 | G75: 6 | H75: 7
A76: Завтрак
A77: 259.00 | B77: Макароны отварные с сыром | D77: 180 | E77: 10.80 | F77: 9.00 | G77: 31.77 | H77: 252.00
A78: 283.00 | B78: Чай с сахаром | D78: 200 | E78: 0.08 | F78: 0.02 | G78: 10.0 | H78: 41
B79: Хлеб из пшеничной хлебопекарной муки для детского питания с витамином и железом | D79: 60 | E79: 4 | F79: 0.6 | G79: 33.0 | H79: 152
A80: 607 | B80: Вафли | D80: 80 | E80: 2.2 | F80: 2.6 | G80: 61.8 | H80: 280
A81: Итого за Завтрак | D81: =SUM(D77:D80) -> 520 | E81: =SUM(E77:E80) -> 16.72 | F81: =SUM(F77:F80) -> 12.26 | G81: =SUM(G77:G80) -> 136.62 | H81: =SUM(H77:H80) -> 724.51
A83: Примерное меню и пищевая ценность приготовляемых блюд (лист 7)
A84: Рацион: Школьное меню | E84: День: | F84: вторник
D85: Неделя: | F85: 2
A86: № рец. | B86: Прием пищи, наименование блюда | D86: Масса порции | E86: Пищевые вещества (г) | H86: Энерге- тическая ценность (ккал)
E87: Б | F87: Ж | G87: У
A88: 1 | B88: 2 | D88: 3 | E88: 4 | F88: 5 | G88: 6 | H88: 7
A89: Завтрак
A92: 138 | B92: картофельное пюре | D92: 200 | E92: 4.35 | F92: 6.72 | G92: 29.37 | H92: 195.94
A93: 414 | B93: кофейный напиток с молоком | D93: 200 | E93: 2.92 | F93: 3.22 | G93: 14.75 | H93: 100.48
B94: Хлеб из пшеничной хлебопекарной муки для детского питания с витамином и железом | D94: 60 | E94: 4 | F94: 0.6 | G94: 33.0 | H94: 152
A95: Итого за Завтрак 460 | E95: =SUM(E90:E94) -> 10.87 | F95: =SUM(F90:F94) -> 10.54 | G95: =SUM(G90:G94) -> 77.12 | H95: =SUM(H90:H94) -> 448.42
A96: Рацион: Школьное меню | E96: День: | F96: среда
D97: Неделя: | F97: 2
A98: № рец. | B98: Прием пищи, наименование блюда | D98: Масса порции | E98: Пищевые вещества (г) | H98: Энерге- тическая ценность (ккал)
E99: Б | F99: Ж | G99: У
A100: 1 | B100: 2 | D100: 3 | E100: 4 | F100: 5 | G100: 6 | H100: 7
A101: Завтрак
A102: 61.00 | B102: суп картофельный с крупой (пшено) | D102: 250 | E102: 2.65 | F102: 2.90 | G102: 14.14 | H102: 92.03
A103: 285 | B103: Чай с лимоном и сахаром | D103: 200 | E103: 0.14 | F103: 0.03 | G103: 10.22 | H103: 41.63
B104: Хлеб из пшеничной хлебопекарной муки для детского питания с витамином и железом | D104: 60 | E104: 4 | F104: 0.6 | G104: 33.0 | H104: 152
A105: Итого за Завтрак | D105: =SUM(D102:D104) -> 510 | E105: =SUM(E102:E104) -> 6.39 | F105: =SUM(F102:F104) -> 3.53 | G105: =SUM(G102:G104) -> 57.36 | H105: =SUM(H102:H104) -> 285.66
A107: Примерное меню и пищевая ценность приготовляемых блюд (лист 9)
A108: Рацион: Школьное меню | E108: День: | F108: четверг
D109: Неделя: | F109: 2
A110: № рец. | B110: Прием пищи, наименование блюда | D110: Масса порции | E110: Пищевые вещества (г) | H110: Энерге- тическая ценность (ккал)
E111: Б | F111: Ж | G111: У
A112: 1 | B112: 2 | D112: 3 | E112: 4 | F112: 5 | G112: 6 | H112: 7
A113: Завтрак
A114: 196.00 | B114: Каша молочная "Дружба" | D114: 200 | E114: 6.23 | F114: 7.88 | G114: 35.86 | H114: 235.50
A115: 289 | B115: какао с молоком | D115: 200 | E115: 3.87 | F115: 3.8 | G115: 15.09 | H115: 111.5
B116: Хлеб из пшеничной хлебопекарной муки для детского питания с витамином и железом | D116: 60 | E116: 4 | F116: 0.6 | G116: 33.0 | H116: 152
A117: Итого за Завтрак | D117: =SUM(D114:D116) -> 460 | E117: =SUM(E114:E116) -> 13.70 | F117: =SUM(F114:F116) -> 12.28 | G117: =SUM(G114:G116) -> 83.95 | H117: =SUM(H114:H116) -> 498.96
A119: Примерное меню и пищевая ценность приготовляемых блюд (лист 10)
A120: Рацион: Школьное меню | E120: День: | F120: пятница
D121: Неделя: | F121: 2
A122: № рец. | B122: Прием пищи, наименование блюда | D122: Масса порции | E122: Пищевые вещества (г) | H122: Энерге- тическая ценность (ккал)
E123: Б | F123: Ж | G123: У
A124: 1 | B124: 2 | D124: 3 | E124: 4 | F124: 5 | G124: 6 | H124: 7
A125: Завтрак
A126: 98.00 | B126: жаркое по-домашнему | D126: 250 | E126: 27.04 | F126: 23.10 | G126: 24.10 | H126: 412.32
A127: 295 | B127: Компот из свежих плодов (яблоки) | D127: 200 | E127: 0.16 | F127: 0.16 | G127: 18.89 | H127: 78.7
B128: Хлеб из пшеничной хлебопекарной муки для детского питания с витамином и железом | D128: 60 | E128: 4 | F128: 0.6 | G128: 33.0 | H128: 152
A130: Итого за Завтрак | D130: 510 | E130: =SUM(E126:E129) -> 30.80 | F130: =SUM(F126:F129) -> 23.86 | G130: =SUM(G126:G129) -> 75.99 | H130: =SUM(H126:H129) -> 642.97
